bitfinex-derivatives/quotes_SOLF0:USTF0_20250730
["timestamp","ask_amount","ask_price","bid_price","bid_amount"]
[1753895398304,3.13,178.66,178.65,5.5976]
[1753895398503,7.37045771,178.66,178.65,5.5976]
[1753895398804,3.13,178.66,178.65,5.5976]
[1753895399003,3.13,178.66,178.65,108.1176]
[1753895399404,3.13,178.66,178.65,102.52]
[1753895402007,3.13,178.66,178.65,108.1176]
[1753895402208,7.37621781,178.66,178.65,108.1176]
[1753895403303,3.27,178.68,178.65,106.87578822]
[1753895403503,4.65182603,178.72,178.67,4.35578822]
[1753895403702,8.8659,178.71,178.68,102.5]
[1753895403901,3.27,178.69,178.68,102.5]
[1753895404102,7.5161178,178.69,178.68,102.5]
[1753895404302,3.27,178.71,178.68,102.5]
[1753895404506,3.27,178.71,178.7,9.95178822]
[1753895404808,7.51674563,178.71,178.7,9.95178822]
[1753895405003,4.24674563,178.71,178.7,9.95178822]
[1753895405307,3.27,178.77,178.7,4.35578822]
[1753895405505,3.27,178.75,178.74,4.35578822]
[1753895405704,7.51489509,178.75,178.74,106.85578822]
[1753895407303,3.27,178.75,178.74,106.85578822]
[1753895407906,3.27,178.75,178.74,112.45058822]
[1753895409303,4.65182603,178.81,178.74,106.85578822]
[1753895409502,3.27,178.77,178.76,4.35578822]
[1753895410110,3.27,178.77,178.76,9.94988822]
[1753895410309,5.5927,178.81,178.76,4.35578822]
[1753895410605,3.27,178.81,178.78,4.35578822]
[1753895410912,3.27,178.8,178.78,4.35578822]
[1753895411106,3.27,178.8,178.79,5.5929]
[1753895411308,3.27,178.8,178.78,4.35578822]
[1753895412311,3.27,178.8,178.77,102.48]
[1753895412513,3.27,178.8,178.77,112.42928822]
[1753895412906,8.8629,178.8,178.77,112.42928822]
[1753895413104,3.27,178.79,178.77,112.42928822]
[1753895413413,3.27,178.79,178.78,5.5936]
[1753895413907,3.27,178.78,178.75,102.46]
[1753895414311,5.5942,178.76,178.75,102.46]
[1753895414504,8.8642,178.76,178.75,102.46]
[1753895414914,3.27,178.76,178.72,102.46]
[1753895415921,3.27,178.73,178.72,102.46]
[1753895416212,3.27,178.73,178.69,4.35578822]
[1753895416413,3.27,178.72,178.7,102.46]
[1753895419019,3.27,178.71,178.7,102.46]
[1753895421419,3.27,178.74,178.7,102.46]
[1753895421622,3.27,178.74,178.71,4.35578822]
[1753895422017,3.27,178.73,178.72,5.5952]
[1753895423222,3.27,178.73,178.71,4.35578822]
[1753895423416,3.27,178.73,178.67,376.18]
[1753895423417,3.27,178.73,178.69,4.35578822]
[1753895423620,3.27,178.73,178.7,102.46]
[1753895424622,3.27,178.72,178.7,102.46]
[1753895425024,8.8656,178.72,178.7,102.46]
[1753895425226,3.27,178.71,178.7,102.46]
[1753895426627,4.35578822,178.73,178.65,4.35578822]
[1753895426928,3.27,178.71,178.66,102.46]
[1753895427122,5.5963,178.7,178.66,108.0573]
[1753895427322,3.27,178.69,178.66,108.0573]
[1753895428429,3.27,178.69,178.67,5.597]
[1753895428725,3.24,178.7,178.66,102.46]
[1753895428927,3.24,178.69,178.66,102.46]
[1753895429328,3.24,178.69,178.67,5.5968]
[1753895429530,3.24,178.68,178.67,5.5968]
[1753895429827,3.24,178.72,178.66,102.46]
[1753895430027,4.35578822,178.73,178.66,102.46]
[1753895430228,3.24,178.7,178.66,102.46]
[1753895430427,3.24,178.68,178.61,4.35578822]
[1753895430626,3.24,178.65,178.62,102.5]
[1753895431227,3.24,178.65,178.62,108.0983]
[1753895431629,3.24,178.65,178.62,102.5]
[1753895431931,3.24,178.65,178.62,108.0985]
[1753895432832,5.5972,178.67,178.63,5.5982]
[1753895433123,3.24,178.64,178.62,102.5]
[1753895433427,3.24,178.63,178.62,108.0984]
[1753895434733,3.24,178.67,178.62,102.5]
[1753895435023,3.24,178.67,178.63,4.35578822]
[1753895435222,3.24,178.66,178.63,4.35578822]
[1753895436031,3.24,178.66,178.65,5.5974]
[1753895436232,3.24,178.66,178.65,108.0774]
[1753895437325,4.35578822,178.73,178.65,108.0774]
[1753895437530,3.24,178.68,178.66,5.5972]
[1753895437727,3.24,178.67,178.66,5.5972]
[1753895438029,3.24,178.66,178.65,112.43328822]
[1753895438824,4.65182603,178.76,178.65,106.83578822]
[1753895439039,3.24,178.72,178.67,9.95258822]
[1753895439328,3.24,178.72,178.68,102.48]
[1753895439523,8.8355,178.72,178.68,108.0766]
[1753895439927,3.24,178.71,178.68,102.48]
[1753895440230,3.24,178.73,178.68,102.48]
[1753895440432,3.24,178.76,178.69,4.35578822]
[1753895440631,3.24,178.73,178.7,5.596]
[1753895441134,3.24,178.73,178.69,9.95198822]
[1753895441622,3.24,178.72,178.69,9.95198822]
[1753895442128,3.24,178.72,178.69,4.35578822]
[1753895442326,3.24,178.72,178.68,102.48]
[1753895442832,8.8354,178.72,178.68,108.0765]
[1753895443034,3.24,178.72,178.68,108.0765]
[1753895443531,3.24,178.72,178.67,9.95268822]
[1753895443728,3.24,178.72,178.65,4.35578822]
[1753895443931,3.24,178.72,178.67,102.48]
[1753895444132,3.24,178.7,178.67,108.0769]
[1753895444331,3.24,178.7,178.67,102.48]
[1753895445230,8.836,178.7,178.67,102.48]
[1753895445428,5.596,178.7,178.67,102.48]
[1753895445626,3.24,178.69,178.67,102.48]
[1753895448033,5.5958,178.71,178.67,112.43268822]
[1753895448230,3.24,178.74,178.67,106.83578822]
[1753895448430,3.24,178.74,178.69,4.35578822]
[1753895448632,5.5955,178.72,178.69,4.35578822]
[1753895448933,3.24,178.7,178.69,4.35578822]
[1753895449425,3.24,178.7,178.68,5.5965]
[1753895449622,3.24,178.7,178.68,9.95228822]
[1753895449829,3.24,178.69,178.68,9.95228822]
[1753895452034,3.24,178.69,178.68,4.35578822]
[1753895453436,8.8363,178.69,178.68,4.35578822]
[1753895453637,3.24,178.68,178.67,102.48]
[1753895454830,3.24,178.68,178.67,108.077]
[1753895455036,3.24,178.68,178.67,102.48]
[1753895455845,3.24,178.68,178.67,108.077]
[1753895456636,3.24,178.69,178.67,102.48]
[1753895456842,3.24,178.69,178.68,4.35578822]
[1753895457540,3.24,178.69,178.68,9.95228822]
[1753895458630,5.5952,178.73,178.68,4.35578822]
[1753895458836,3.01,178.71,178.7,4.35578822]
[1753895459137,3.01,178.71,178.7,106.83578822]
[1753895459336,3.01,178.71,178.7,112.43178822]
[1753895459537,7.23709493,178.71,178.7,112.43178822]
[1753895460539,7.23709493,178.71,178.7,106.83578822]
[1753895461544,7.23709493,178.71,178.7,112.43178822]
[1753895462044,7.23709493,178.71,178.7,102.48]
[1753895463944,3.01,178.71,178.7,102.48]
[1753895467435,7.23623528,178.71,178.7,102.48]
[1753895468337,5.5963,178.69,178.68,102.46]
[1753895468548,8.6063,178.69,178.68,102.46]
[1753895468843,3.01,178.69,178.68,102.46]
[1753895470445,8.6063,178.69,178.68,102.46]
[1753895470847,3.01,178.69,178.65,102.46]
[1753895471045,3.01,178.69,178.66,4.35578822]
[1753895471346,3.01,178.68,178.67,5.5967]
[1753895473148,7.23824952,178.68,178.67,5.5967]
[1753895474348,3.01,178.7,178.69,5.5963]
[1753895474748,7.23854349,178.7,178.69,108.0563]
[1753895476052,3.01,178.7,178.69,108.0563]
[1753895477550,7.24154192,178.7,178.69,108.0563]
[1753895479552,3.01,178.7,178.69,108.0563]
[1753895480454,7.24421975,178.7,178.69,108.0563]
[1753895481051,4.23421975,178.7,178.69,108.0563]
[1753895481257,7.24421975,178.7,178.69,108.0563]
[1753895483355,4.23421975,178.7,178.69,108.0563]
[1753895484648,3.01,178.73,178.72,5.5954]
[1753895484849,3.01,178.73,178.72,112.39118822]
[1753895490957,3.01,178.73,178.72,108.0354]
[1753895491157,3.01,178.73,178.72,112.39118822]
[1753895491653,3.18,178.78,178.72,106.79578822]
[1753895491856,3.18,178.78,178.75,4.35578822]
[1753895492056,3.18,178.78,178.76,108.0341]
[1753895492359,3.18,178.78,178.76,102.44]
[1753895492755,5.5938,178.77,178.76,102.44]
[1753895492955,8.7738,178.77,178.76,102.44]
[1753895493158,3.18,178.77,178.74,5.5946]
[1753895493358,3.18,178.77,178.75,102.44]
[1753895493562,3.18,178.77,178.71,4.35578822]
[1753895493765,3.18,178.77,178.72,102.42]
[1753895493964,3.18,178.76,178.72,102.42]
[1753895494365,3.18,178.76,178.73,5.5948]
[1753895495160,3.18,178.76,178.74,102.42]
[1753895495361,8.7742,178.76,178.74,102.42]
[1753895495559,3.18,178.76,178.74,102.42]
[1753895495760,3.18,178.76,178.69,4.35578822]
[1753895495969,3.18,178.76,178.7,102.42]
[1753895496262,5.595,178.74,178.7,108.0159]
[1753895496459,3.18,178.73,178.7,108.0159]
[1753895497061,3.18,178.72,178.7,102.42]
[1753895498163,5.5954,178.72,178.7,102.42]
[1753895498364,3.18,178.71,178.7,102.42]
[1753895499067,12.9897576,178.71,178.7,102.42]
[1753895500660,3.18,178.7,178.66,5.5972]
[1753895500857,3.18,178.7,178.68,102.42]
[1753895501262,8.7762,178.7,178.68,102.42]
[1753895501659,3.18,178.69,178.68,102.42]
[1753895505174,3.18,178.69,178.68,108.0167]
[1753895507065,3.18,178.7,178.68,102.42]
[1753895507870,3.18,178.7,178.69,5.5961]
[1753895508675,3.18,178.7,178.68,108.0164]
[1753895508876,3.18,178.7,178.68,102.42]
[1753895509675,3.18,178.73,178.68,102.42]
[1753895509868,3.18,178.7,178.68,102.42]
[1753895510675,8.7761,178.7,178.68,102.42]
[1753895510870,5.5961,178.7,178.68,102.42]
[1753895511068,3.18,178.69,178.68,102.42]
[1753895516479,3.18,178.69,178.68,108.0167]
[1753895517385,3.18,178.69,178.68,102.42]
[1753895523088,3.24,178.71,178.68,102.42]
[1753895523281,3.24,178.71,178.68,106.77578822]
[1753895523584,3.24,178.71,178.68,112.37218822]
[1753895524186,3.24,178.71,178.69,5.5963]
[1753895524778,3.24,178.69,178.68,102.42]
[1753895525883,3.24,178.71,178.68,106.77578822]
[1753895526079,5.595,178.74,178.7,9.95178822]
[1753895526279,4.18546832,178.73,178.72,4.35578822]
[1753895526478,3.24,178.76,178.72,106.83578822]
[1753895526684,3.24,178.79,178.74,4.35578822]
[1753895526879,4.18619818,178.78,178.74,4.35578822]
[1753895527080,3.24,178.76,178.74,4.35578822]
[1753895528883,3.24,178.76,178.72,102.48]
[1753895529186,3.24,178.74,178.71,106.85578822]
[1753895529887,4.65182603,178.79,178.71,106.85578822]
[1753895530088,3.24,178.77,178.71,106.85578822]
[1753895530385,3.24,178.75,178.71,106.85578822]
[1753895530580,9.78087368,178.74,178.71,4.35578822]
[1753895530788,3.24,178.73,178.7,106.87578822]
[1753895531181,8.8353,178.73,178.7,106.87578822]
[1753895531381,3.24,178.72,178.7,102.52]
[1753895532387,8.8354,178.72,178.7,102.52]
[1753895532784,3.24,178.72,178.7,102.52]
[1753895533390,5.595,178.74,178.7,108.1159]
[1753895533589,3.24,178.72,178.7,108.1159]
[1753895533792,3.24,178.72,178.7,106.87578822]
[1753895533986,3.24,178.77,178.7,106.87578822]
[1753895534186,3.24,178.75,178.72,4.35578822]
[1753895534384,4.18735975,178.74,178.72,4.35578822]
[1753895534582,4.18735975,178.74,178.73,5.5948]
[1753895535187,8.83918578,178.78,178.72,4.35578822]
[1753895535383,3.24,178.73,178.72,4.35578822]
[1753895535893,3.24,178.73,178.72,9.95118822]
[1753895538791,8.8351,178.73,178.7,106.87578822]
[1753895538993,3.24,178.72,178.7,102.52]
[1753895539594,9.00761425,178.78,178.7,102.52]
[1753895539795,7.43225411,178.77,178.7,102.52]
[1753895539985,3.24,178.74,178.71,5.5955]
[1753895540898,7.42586543,178.73,178.7,108.1159]
[1753895541100,3.24,178.73,178.7,108.1159]
[1753895541590,3.24,178.73,178.7,102.52]
[1753895541798,3.24,178.73,178.71,5.5956]
[1753895543097,8.8351,178.73,178.7,5.5959]
[1753895543292,3.24,178.72,178.71,102.46]
[1753895544292,3.24,178.72,178.71,108.0557]
[1753895546699,3.24,178.76,178.73,5.5951]
[1753895546999,3.24,178.74,178.73,5.5951]
[1753895547200,7.42612712,178.74,178.73,5.5951]
[1753895547401,3.24,178.74,178.73,9.95088822]
[1753895547601,3.24,178.78,178.74,5.5947]
[1753895547793,3.24,178.76,178.75,102.4]
[1753895547988,7.4271749,178.76,178.75,102.4]
[1753895549301,3.28,178.75,178.69,4.35578822]
[1753895549499,4.18850383,178.74,178.7,102.46]
[1753895549803,7.46789212,178.73,178.7,102.46]
[1753895550003,3.28,178.7,178.66,4.35578822]
[1753895550303,3.28,178.7,178.68,102.5]
[1753895550496,3.28,178.69,178.68,108.0966]
[1753895550697,3.28,178.69,178.68,102.5]
[1753895552603,3.28,178.69,178.68,108.0967]
[1753895554102,3.28,178.71,178.68,106.85578822]
[1753895554603,151.41796678,178.76,178.68,106.85578822]
[1753895554799,3.28,178.7,178.68,106.85578822]
[1753895555104,3.28,178.7,178.68,102.5]
[1753895555605,3.28,178.7,178.67,5.5969]
[1753895555805,3.28,178.7,178.68,102.54]
[1753895557008,3.28,178.7,178.68,108.1366]
[1753895557604,3.28,178.71,178.69,5.5962]
[1753895558011,3.28,178.7,178.69,5.5962]
[1753895558702,3.28,178.7,178.68,108.1366]
[1753895558904,3.28,178.7,178.68,112.49238822]
[1753895559106,3.28,178.69,178.68,112.49238822]
[1753895564311,3.28,178.74,178.68,106.89578822]
[1753895564507,7.47371467,178.73,178.68,106.89578822]
[1753895564706,3.28,178.71,178.68,106.89578822]
[1753895565013,5.595,178.74,178.68,106.89578822]
[1753895565214,4.19348514,178.73,178.68,106.89578822]
[1753895565410,7.47348514,178.72,178.71,5.5956]
[1753895565710,7.47348514,178.72,178.71,108.0556]
[1753895565914,7.47348514,178.72,178.71,102.46]
[1753895568114,4.19348514,178.72,178.69,5.5963]
[1753895568309,7.47348514,178.71,178.7,102.44]
[1753895568708,7.47348514,178.71,178.7,108.036]
[1753895568908,3.28,178.73,178.7,106.79578822]
[1753895569113,7.47464454,178.72,178.7,102.44]
[1753895569309,3.28,178.72,178.71,4.35578822]
[1753895569914,3.28,178.72,178.71,5.5957]
[1753895570116,3.28,178.72,178.71,9.95148822]
[1753895570615,7.47546186,178.72,178.71,9.95148822]
[1753895571217,7.47546186,178.72,178.71,4.35578822]
[1753895575020,7.47546186,178.72,178.71,9.95148822]
[1753895577114,7.47546186,178.72,178.71,4.35578822]
[1753895578014,13.07086186,178.72,178.71,4.35578822]
[1753895578216,3.28,178.71,178.68,4.35578822]
[1753895578416,3.28,178.71,178.69,102.42]
[1753895578616,8.8759,178.71,178.69,102.42]
[1753895578815,3.16,178.7,178.69,102.42]
[1753895579916,3.16,178.69,178.67,4.35578822]
[1753895580123,3.16,178.69,178.68,102.42]
[1753895580519,3.16,178.69,178.67,9.95258822]
[1753895580821,3.16,178.69,178.68,102.42]
[1753895581615,12.95688472,178.69,178.68,102.42]
[1753895582022,7.36058472,178.69,178.68,102.42]
[1753895582723,12.95688472,178.69,178.68,102.42]
[1753895583215,5.5969,178.68,178.65,5.5974]
[1753895583423,4.20096,178.67,178.66,102.42]
[1753895583721,7.36096,178.67,178.66,102.42]
[1753895586226,3.16,178.67,178.66,102.42]
[1753895588731,8.757,178.67,178.66,102.42]
[1753895590420,3.16,178.67,178.66,102.42]
[1753895591829,8.757,178.67,178.64,9.95358822]
[1753895592025,4.19754622,178.66,178.65,102.42]
[1753895592228,7.35754622,178.66,178.65,102.42]
[1753895592432,3.16,178.66,178.65,102.42]
[1753895593029,3.16,178.66,178.63,9.95378822]
[1753895593334,3.16,178.66,178.64,102.42]
[1753895593527,3.16,178.66,178.64,108.0179]
[1753895593936,3.16,178.66,178.64,102.42]
[1753895594933,3.16,178.65,178.64,102.42]
[1753895598436,8.7576,178.65,178.64,102.42]
[1753895599332,12.96209645,178.65,178.64,102.42]
[1753895600339,8.7576,178.65,178.64,102.42]
[1753895600738,12.97780405,178.65,178.64,102.42]
[1753895601141,8.7576,178.65,178.64,102.42]
[1753895601737,3.16,178.65,178.64,106.77578822]
[1753895601933,3.16,178.66,178.64,106.77578822]
[1753895602129,3.16,178.7,178.64,106.77578822]
[1753895602333,5.5973,178.66,178.64,106.77578822]
[1753895602534,3.16,178.65,178.64,106.77578822]
[1753895602942,3.16,178.65,178.64,102.42]
[1753895604741,3.16,178.65,178.64,105.20038918]
[1753895612250,3.16,178.65,178.64,102.42]
[1753895612550,3.16,178.65,178.64,105.20038918]
[1753895612752,8.7576,178.65,178.64,102.42]
[1753895613247,3.16,178.65,178.64,102.42]
[1753895615153,3.16,178.65,178.64,105.20038918]
[1753895617652,8.7576,178.65,178.64,105.20038918]
[1753895619555,3.16,178.65,178.64,105.20038918]
[1753895620152,8.7576,178.65,178.64,102.42]
[1753895620357,8.7576,178.65,178.64,105.20038918]
[1753895622352,8.7576,178.65,178.64,102.42]
[1753895622353,12.98290659,178.65,178.64,102.42]
[1753895622953,3.1,178.63,178.54,376.28]
[1753895623158,3.1,178.63,178.61,2.78038918]
[1753895623359,3.1,178.63,178.61,105.20038918]
[1753895623549,4.22738838,178.62,178.61,105.20038918]
[1753895623750,12.92588838,178.62,178.61,105.20038918]
[1753895624354,5.5998,178.58,178.56,0.97459882]
[1753895624659,2.78038918,178.62,178.57,2.78038918]
[1753895624858,2.78038918,178.6,178.55,102.42]
[1753895625054,3.1,178.58,178.55,105.20038918]
[1753895625860,8.7,178.58,178.55,105.20038918]
[1753895626060,3.1,178.58,178.55,105.20038918]
[1753895626262,5.6,178.58,178.55,105.20038918]
[1753895626460,3.1,178.57,178.55,105.20038918]
[1753895627064,8.7001,178.57,178.55,105.20038918]
[1753895627257,3.1,178.56,178.55,105.20038918]
[1753895633469,8.7,178.58,178.55,105.20038918]
[1753895633665,8.7,178.58,178.57,2.78038918]
[1753895633861,8.7,178.58,178.57,105.22038918]
[1753895634061,3.1,178.63,178.57,105.22038918]
[1753895634265,4.2187146,178.62,178.61,2.78038918]
[1753895634467,9.8172146,178.62,178.61,105.22038918]
[1753895634869,12.9172146,178.62,178.61,105.22038918]
[1753895640769,8.6985,178.62,178.61,105.22038918]
[1753895641869,3.12,178.65,178.61,105.22038918]
[1753895642171,3.12,178.68,178.64,8.37828918]
[1753895642373,7.34164605,178.67,178.66,2.78038918]
[1753895642575,3.12,178.67,178.66,2.78038918]
[1753895642980,8.7169,178.67,178.66,2.78038918]
[1753895644772,8.7169,178.67,178.65,102.44]
[1753895644972,3.12,178.66,178.65,102.44]
[1753895645176,8.7173,178.66,178.65,102.44]
[1753895645572,3.12,178.66,178.65,102.44]
[1753895646668,8.7173,178.66,178.65,102.44]
[1753895648172,4.34361167,178.68,178.55,0.97468071]
[1753895648467,3.12,178.65,178.59,4.34361167]
[1753895648972,8.7191,178.6,178.59,102.42]
[1753895654576,3.12,178.6,178.59,102.42]
[1753895656383,8.7192,178.6,178.57,4.34361167]
[1753895656576,3.12,178.6,178.59,102.42]
[1753895661483,8.7191,178.6,178.59,102.42]
[1753895666188,13.03689816,178.6,178.59,102.42]
[1753895675092,4.31779816,178.6,178.59,105.20229298]
[1753895675299,4.68297255,178.63,178.59,105.20229298]
[1753895675300,3.28,178.63,178.59,105.20229298]
[1753895675487,3.28,178.62,178.61,2.78229298]
[1753895676800,7.60170842,178.62,178.61,2.78229298]
[1753895678400,13.20020842,178.62,178.59,102.42]
[1753895678600,8.8785,178.62,178.61,2.78229298]
[1753895678804,13.20044072,178.62,178.61,2.78229298]
[1753895690713,8.8791,178.6,178.59,102.42]
[1753895691014,13.20104072,178.6,178.59,102.42]
[1753895691507,4.32194072,178.6,178.56,105.16229298]
[1753895691811,3.28,178.58,178.56,102.38]
[1753895692010,3.28,178.58,178.57,2.78229298]
[1753895693108,7.60550204,178.58,178.57,2.78229298]
[1753895693413,3.28,178.57,178.56,102.38]
[1753895693712,7.60550204,178.57,178.56,102.38]
[1753895693909,3.28,178.56,178.51,2.78229298]
[1753895694109,4.32550204,178.55,178.52,102.38]
[1753895694313,3.28,178.54,178.52,102.38]
[1753895694808,4.32358315,178.53,178.52,102.38]
[1753895695008,3.28,178.52,178.49,102.38]
[1753895695917,3.28,178.53,178.49,102.38]
[1753895696215,3.28,178.51,178.49,102.38]
[1753895696812,3.28,178.51,178.5,5.6023]
[1753895701320,3.28,178.51,178.49,107.9825]
[1753895702318,3.28,178.51,178.5,5.6023]
[1753895706817,5.601,178.55,178.53,5.6013]
[1753895707021,4.35059902,178.58,178.53,5.6013]
[1753895707224,4.30579939,178.57,178.53,5.6013]
[1753895707426,3.22,178.55,178.54,5.601]
[1753895712727,3.22,178.57,178.52,102.4]
[1753895713130,3.22,178.57,178.55,5.6006]
[1753895713330,3.22,178.57,178.55,107.9806]
[1753895713533,8.8201,178.57,178.55,107.9806]
[1753895713923,3.22,178.56,178.55,107.9806]
[1753895717434,8.8204,178.56,178.55,102.38]
[1753895719035,3.22,178.56,178.55,102.38]
[1753895720640,3.22,178.56,178.55,107.9807]
[1753895720836,3.22,178.56,178.55,102.38]
[1753895727140,3.22,178.56,178.55,107.9807]
[1753895727644,3.22,178.6,178.59,5.5992]
[1753895727844,3.22,178.6,178.59,107.9592]
[1753895728846,3.22,178.6,178.59,102.36]
[1753895729640,3.22,178.6,178.59,105.14310859]
[1753895729844,3.22,178.6,178.59,102.36]
[1753895730246,7.5464128,178.6,178.59,102.36]
[1753895730544,4.3264128,178.6,178.59,102.36]
[1753895730849,7.2964128,178.6,178.59,102.36]
[1753895733753,2.97,178.59,178.57,5.6]
[1753895733944,2.97,178.59,178.58,102.34]
[1753895734643,2.97,178.59,178.58,107.9398]
[1753895734842,2.97,178.61,178.58,112.28687207]
[1753895735041,2.97,178.6,178.58,106.68707207]
[1753895735348,4.68297255,178.65,178.58,106.68707207]
[1753895735651,4.32758687,178.64,178.61,4.34707207]
[1753895735845,5.5971,178.67,178.63,9.94527207]
[1753895736051,4.32826975,178.66,178.64,102.32]
[1753895736244,4.32826975,178.65,178.64,102.32]
[1753895736544,7.29826975,178.65,178.64,102.32]
[1753895738652,2.97,178.65,178.64,107.9179]
[1753895738849,2.97,178.69,178.64,102.32]
[1753895739149,7.2942189,178.68,178.67,9.94407207]
[1753895739358,7.2942189,178.68,178.67,112.26407207]
[1753895739545,151.23713161,178.74,178.67,106.66707207]
[1753895739856,2.97,178.69,178.67,106.66707207]
[1753895740155,2.97,178.69,178.68,5.5966]
[1753895741149,146.55415906,178.74,178.67,106.66707207]
[1753895741352,2.97,178.71,178.69,4.34707207]
[1753895741546,2.97,178.73,178.71,5.5955]
[1753895741754,2.97,178.73,178.71,4.34707207]
[1753895742058,2.97,178.77,178.72,4.34707207]
[1753895742250,2.97,178.75,178.73,102.3]
[1753895742448,154.60856354,178.81,178.73,102.3]
[1753895742751,2.97,178.74,178.73,107.8948]
[1753895743154,2.97,178.77,178.73,102.3]
[1753895743464,8.5638,178.77,178.73,107.895]
[1753895743648,2.97,178.76,178.73,102.3]
[1753895744248,8.5642,178.76,178.73,102.3]
[1753895744443,2.97,178.75,178.73,102.3]
[1753895745551,5.5942,178.76,178.73,102.3]
[1753895745854,2.97,178.74,178.73,107.8951]
[1753895746356,2.97,178.74,178.73,102.3]
[1753895748458,2.97,178.74,178.73,102.26]
[1753895749960,8.5648,178.74,178.73,102.26]
[1753895750161,2.97,178.74,178.7,102.24]
[1753895751259,5.5951,178.73,178.7,102.24]
[1753895751457,2.97,178.72,178.7,102.24]
[1753895751663,2.97,178.72,178.66,4.34707207]
[1753895751865,5.5959,178.71,178.67,102.24]
[1753895752058,2.97,178.7,178.67,102.24]
[1753895754159,2.97,178.68,178.62,102.22]
[1753895754361,2.97,178.66,178.62,102.22]
[1753895754560,2.97,178.64,178.62,102.22]
[1753895755466,8.568,178.64,178.62,102.22]
[1753895755766,2.97,178.63,178.62,102.22]
[1753895756060,2.97,178.62,178.56,4.34707207]
[1753895756257,2.97,178.62,178.59,102.22]
[1753895757053,8.5687,178.62,178.59,102.22]
[1753895757255,4.34707207,178.65,178.59,102.22]
[1753895757451,2.97,178.61,178.59,102.22]
[1753895759259,8.5688,178.61,178.59,102.22]
[1753895759461,3.0,178.6,178.59,102.22]
[1753895759756,3.0,178.6,178.54,4.34707207]
[1753895759957,3.0,178.6,178.55,102.24]
[1753895760763,4.34707207,178.63,178.57,5.5999]
[1753895760966,3.0,178.59,178.57,5.5999]
[1753895761465,3.0,178.58,178.57,5.5999]
[1753895770368,3.0,178.6,178.58,5.5995]
[1753895770568,3.0,178.59,178.58,5.5995]
[1753895775075,3.0,178.59,178.57,5.5999]
[1753895776470,3.0,178.59,178.58,5.5998]
[1753895776671,3.0,178.59,178.56,4.34707207]
[1753895777475,3.0,178.59,178.57,5.5999]
[1753895778378,3.0,178.59,178.51,217.43328625]
[1753895778578,3.0,178.59,178.53,4.34707207]
[1753895778774,5.6,178.58,178.54,5.6008]
[1753895779076,3.0,178.57,178.54,5.6008]
[1753895779476,3.0,178.57,178.55,5.6006]
[1753895781473,4.34707207,178.6,178.52,102.26]
[1753895781776,3.0,178.56,178.52,102.26]
[1753895781971,7.34707207,178.56,178.52,102.26]
[1753895782276,8.6013,178.53,178.52,102.26]
[1753895783977,5.6013,178.53,178.49,107.8624]
[1753895784176,3.0,178.52,178.49,107.8624]
[1753895785382,3.0,178.52,178.5,5.6022]
[1753895785880,3.0,178.52,178.51,5.602]
[1753895787585,3.0,178.52,178.49,102.26]